Workbook

Sheet INFORME
I2: DEFENSORÍA DEL PUEBLO
I3: INFORME DE EJECUCIÓN PRESUPUESTAL DESAGREGADO ACUMULADO
I4: VIGENCIA ACTUAL
I5: PERÍODO: 01-ENERO-2022 A 31-MAYO-2022
A8: DESCRIPCION | M8: APR. VIGENTE | N8: CDP | O8: APR. DISPONIBLE | P8: CDP MODIFICACIÓN | Q8: COMPROMISO | R8: OBLIGACION | S8: ORDEN PAGO | T8: PAGOS | U8: % EJECUCIÓN COMPROMETIDA | V8: %EJECUCIÓN OBLIGADA
A9: A | D9: PRESUPUESTO DE FUNCIONAMIENTO | M9: =+M33+M34+M35 -> 698346757103 | N9: =+N33+N34+N35 -> 5.236149184e+11 | O9: 1.563956174e+11 | P9: =+P33+P34+P35 -> 18336221340 | Q9: =+Q33+Q34+Q35 -> 3.426566409e+11 | R9: =+R33+R34+R35 -> 1.976335373e+11 | S9: =+S33+S34+S35 -> 1.933360087e+11 | T9: =+T33+T34+T35 -> 1.919267578e+11 | U9: =Q9/M9 -> 0.4906683354 | V9: =R9/M9 -> 0.2830020119
A10: B | D10: SERVICIO DE LA DEUDA PÚBLICA | M10: =+M135 -> 247291740 | N10: =+N135 -> 0 | O10: 247291740 | P10: =+P135 -> 0 | Q10: =+Q135 -> 0 | R10: =+R135 -> 0 | S10: =+S135 -> 0 | T10: =+T135 -> 0 | U10: 0 | V10: 0
A11: C | D11: PRESUPUESTO DE INVERSIÓN UNIDAD 25-02-00 | M11: =+M141+M139+M140 -> 60375679763 | N11: =+N141+N139+N140 -> 39483339644 | O11: 20892340119 | P11: =+P141+P139+P140 -> 0 | Q11: =+Q141+Q139+Q140 -> 28922714429 | R11: =+R141+R139+R140 -> 9454748706 | S11: =+S141+S139+S140 -> 9362423765 | T11: =+T141+T139+T140 -> 9267583765 | U11: 0.4790457771 | V11: 0.1565986295
A12: A+C | D12: TOTAL PRESUPUESTO UNIDAD 25-02-00 | M12: =+M9+M10+M11 -> 758969728606 | N12: =+N9+N10+N11 -> 5.63098258e+11 | O12: 1.775352492e+11 | P12: =+P9+P10+P11 -> 18336221340 | Q12: 3.715793553e+11 | R12: 2.07088286e+11 | S12: 2.026984324e+11 | T12: 2.011943416e+11 | U12: 0.4895838942 | V12: 0.2728544739
A13: C | D13: PRESUPUESTO INVERSIÓN SUBUNIDAD 25-02-00-001 | M13: =+M230 -> 14000000000 | N13: =+N230 -> 8338912095 | O13: 5661087905 | P13: =+P230 -> 0 | Q13: =+Q230 -> 7820258147 | R13: =+R230 -> 778780228 | S13: =+S230 -> 778780228 | T13: =+T230 -> 778780228 | U13: 0.5585898676 | V13: 0.05562715914
A14: A+B+C | D14: TOTAL PRESUPUESTO DESAGREGADO | M14: =+M12+M13 -> 772969728606 | N14: =+N12+N13 -> 5.714371701e+11 | O14: 1.831963371e+11 | P14: =+P12+P13 -> 18336221340 | Q14: 3.793996134e+11 | R14: 2.078670662e+11 | S14: 2.034772127e+11 | T14: 2.019731218e+11 | U14: 0.4908337279 | V14: 0.2689200605
A15: A+C | D15: APROPIACIÓN BLOQUEADA | M15: 23426664897 | N15: 0 | O15: 0 | P15: 0 | Q15: 0 | R15: 0 | S15: 0 | T15: 0 | U15: 0 | V15: 0
A16: A+B+C | D16: TOTAL PRESUPUESTO DEFENSORÍA DEL PUEBLO | M16: =+M14+M15 -> 796396393503 | N16: =+N14+N15 -> 5.714371701e+11 | O16: 1.831963371e+11 | P16: =+P14+P15 -> 18336221340 | Q16: 3.793996134e+11 | R16: 2.078670662e+11 | S16: 2.034772127e+11 | T16: 2.019731218e+11 | U16: 0.4763954439 | V16: 0.2610095524
A18: DESCRIPCION | M18: APR. VIGENTE | N18: CDP | O18: APR. DISPONIBLE | P18: CDP MODIFICACIÓN | Q18: COMPROMISO | R18: OBLIGACION | S18: ORDEN PAGO | T18: PAGOS | U18: % EJECUCIÓN COMPROMETIDA | V18: %EJECUCIÓN OBLIGADA
A19: A-01 | D19: GASTOS DE PERSONAL | M19: =+M36 -> 237025946000 | N19: =+N36 -> 236845560147 | O19: =+O36 -> 180385853 | P19: =+P36 -> 0 | Q19: =+Q36 -> 88576881158 | R19: =+R36 -> 88573560835 | S19: =+S36 -> 88573560835 | T19: =+T36 -> 88573560835 | U19: =Q19/M19 -> 0.373701203 | V19: =R19/M19 -> 0.3736871947
A20: A-02 | D20: ADQUISICIÓN DE BIENES Y SERVICIOS | M20: =+M63 -> 52344273598 | N20: =+N63 -> 5.033434972e+10 | O20: 1933764044 | P20: =+P63 -> 76159835 | Q20: =+Q63 -> 3.16503315e+10 | R20: =+R63 -> 1.341891554e+10 | S20: =+S63 -> 1.337402381e+10 | T20: =+T63 -> 1.335824768e+10 | U20: 0.6046570011 | V20: 0.2563588072
A21: A-03 | D21: TRANSFERENCIAS CORRIENTES | M21: =+M111+M112 -> 406610460505 | N21: =+N111+N112 -> 2.359500085e+11 | O21: 1.524003905e+11 | P21: =+P111+P112 -> 18260061505 | Q21: =+Q111+Q112 -> 2.219906506e+11 | R21: =+R111+R112 -> 9.520299513e+10 | S21: =+S111+S112 -> 9.095035826e+10 | T21: =+T111+T112 -> 8.955688353e+10 | U21: 0.5459541064 | V21: 0.2341380864
A22: A-08 | D22: GASTOS POR TRIBUTOS, MULTAS, SANCIONES E INTERESES DE MORA | M22: =+M127+M128 -> 2366077000 | N22: =+N127+N128 -> 485000000 | O22: 1881077000 | P22: =+P127+P128 -> 0 | Q22: =+Q127+Q128 -> 438777593 | R22: =+R127+R128 -> 438065758 | S22: =+S127+S128 -> 438065758 | T22: =+T127+T128 -> 438065758 | U22: 0.1854451875 | V22: 0.1851443372
A23: A | D23: TOTAL PRESUPUESTO DE FUNCIONAMIENTO | M23: =SUM(M19:M22) -> 698346757103 | N23: =SUM(N19:N22) -> 5.236149184e+11 | O23: 1.563956174e+11 | P23: =SUM(P19:P22) -> 18336221340 | Q23: 3.426566409e+11 | R23: 1.976335373e+11 | S23: 1.933360087e+11 | T23: 1.919267578e+11 | U23: 0.4906683354 | V23: 0.2830020119
A24: B | D24: SERVICIO DE LA DEUDA PÚBLICA | M24: =+M10 -> 247291740 | N24: =+N10 -> 0 | O24: 247291740 | P24: =+P10 -> 0 | Q24: 0 | R24: 0 | S24: 0 | T24: 0 | U24: 0 | V24: 0
A25: C-2502 C-2599 | D25: INVERSIÓN UNIDAD 25-02-00 | M25: =+M141+M139+M140 -> 60375679763 | N25: =+N141+N139+N140 -> 39483339644 | O25: 20892340119 | P25: =+P141+P139+P140 -> 0 | Q25: =+Q141+Q139+Q140 -> 28922714429 | R25: =+R141+R139+R140 -> 9454748706 | S25: =+S141+S139+S140 -> 9362423765 | T25: =+T141+T139+T140 -> 9267583765 | U25: 0.4790457771 | V25: 0.1565986295
A26: C-2599 | D26: INVERSIÓN SUBUNIDAD 25-02-00-001 | M26: =+M230 -> 14000000000 | N26: =+N230 -> 8338912095 | O26: 5661087905 | P26: =+P230 -> 0 | Q26: =+Q230 -> 7820258147 | R26: =+R230 -> 778780228 | S26: =+S230 -> 778780228 | T26: =+T230 -> 778780228 | U26: 0.5585898676 | V26: 0.05562715914
A27: C | D27: TOTAL PRESUPUESTO DE INVERSIÓN | M27: =+M25+M26 -> 74375679763 | N27: =+N25+N26 -> 47822251739 | O27: 26553428024 | P27: =+P25+P26 -> 0 | Q27: 36742972576 | R27: 1.023352893e+10 | S27: 1.014120399e+10 | T27: 1.004636399e+10 | U27: 0.4940186455 | V27: 0.1375924088
A28: A+B+C | D28: TOTAL EJECUCIÓN PRESUPUESTO DESAGREGADO DEFENSORÍA DEL PUEBLO | M28: =+M23+M24+M27 -> 772969728606 | N28: =+N23+N24+N27 -> 5.714371701e+11 | O28: 1.831963371e+11 | P28: =+P23+P24+P27 -> 18336221340 | Q28: 3.793996134e+11 | R28: 2.078670662e+11 | S28: 2.034772127e+11 | T28: 2.019731218e+11 | U28: 0.4908337279 | V28: 0.2689200605
A29: A+C | D29: APROPIACIÓN BLOQUEADA (LEVANTAMIENTO PREVIO CONCEPTO DGPPN) | M29: =+M15 -> 23426664897 | N29: =+N15 -> 0 | O29: 0 | P29: =+P15 -> 0 | Q29: 0 | R29: 0 | S29: 0 | T29: 0 | U29: 0 | V29: 0
A30: A+B+C | D30: TOTAL PRESUPUESTO DEFENSORÍA DEL PUEBLO | M30: =+M28+M29 -> 796396393503 | N30: =+N28+N29 -> 5.714371701e+11 | O30: 1.831963371e+11 | P30: =+P28+P29 -> 18336221340 | Q30: 3.793996134e+11 | R30: 2.078670662e+11 | S30: 2.034772127e+11 | T30: 2.019731218e+11 | U30: 0.4763954439 | V30: 0.2610095524
S31: =+S23+S25 -> 2.026984324e+11
A32: TIPO | B32: CTA | C32: SUBC | D32: OBJG | E32: ORD | F32: SORD | G32: ITEM | H32: S. ITEM | I32: CONCEPTO | J32: FUENTE | K32: SITUACION | L32: REC. | M32: APR. VIGENTE | N32: CDP | O32: APR. DISPONIBLE | P32: CDP MODIFICACIÓN | Q32: COMPROMISO | R32: OBLIGACION | S32: ORDEN PAGO | T32: PAGOS | U32: % EJECUCIÓN COMPROMETIDA | V32: %EJECUCIÓN OBLIGADA
A33: A | I33: FUNCIONAMIENTO | J33: Nación | K33: CSF | L33: 10 | M33: 542571090103 | N33: 4.69730591e+11 | O33: 5.450427781e+10 | P33: 18336221340 | Q33: 2.941328568e+11 | R33: 1.699447721e+11 | S33: 1.692461365e+11 | T33: 1.678386463e+11 | U33: =+IFERROR(Q33/M33,0) -> 0.5421093422 | V33: =+IFERROR(R33/M33,0) -> 0.3132212077
A34: A | I34: FUNCIONAMIENTO | J34: Nación | K34: SSF | L34: 11 | M34: 1881077000 | N34: 0 | O34: 1881077000 | P34: 0 | Q34: 0 | R34: 0 | S34: 0 | T34: 0 | U34: 0 | V34: 0
A35: A | I35: FUNCIONAMIENTO | J35: Nación | K35: SSF | L35: 16 | M35: 153894590000 | N35: 53884327424 | O35: 100010262576 | P35: 0 | Q35: 48523784086 | R35: 2.768876515e+10 | S35: 2.408987219e+10 | T35: 2.408811151e+10 | U35: 0.3153053274 | V35: 0.1799203283
A36: A | B36: 01 | I36: GASTOS DE PERSONAL | J36: Nación | K36: CSF | L36: 10 | M36: 237025946000 | N36: 236845560147 | O36: 180385853 | P36: 0 | Q36: 88576881158 | R36: 88573560835 | S36: 88573560835 | T36: 88573560835 | U36: 0.373701203 | V36: 0.3736871947
A37: A | B37: 01 | C37: 01 | I37: PLANTA DE PERSONAL PERMANENTE | J37: Nación | K37: CSF | L37: 10 | M37: 237025946000 | N37: 236845560147 | O37: 180385853 | P37: 0 | Q37: 88576881158 | R37: 88573560835 | S37: 88573560835 | T37: 88573560835 | U37: 0.373701203 | V37: 0.3736871947
A38: A | B38: 01 | C38: 01 | D38: 01 | I38: SALARIO | J38: Nación | K38: CSF | L38: 10 | M38: 162055267000 | N38: 162055267000 | O38: 0 | P38: 0 | Q38: 60474993592 | R38: 60471673269 | S38: 60471673269 | T38: 60471673269 | U38: 0.3731751193 | V38: 0.3731546304
A39: A | B39: 01 | C39: 01 | D39: 01 | E39: 001 | I39: FACTORES SALARIALES COMUNES | J39: Nación | K39: CSF | L39: 10 | M39: 162055267000 | N39: 162055267000 | O39: 0 | P39: 0 | Q39: 60474993592 | R39: 60471673269 | S39: 60471673269 | T39: 60471673269 | U39: 0.3731751193 | V39: 0.3731546304
A40: A | B40: 01 | C40: 01 | D40: 01 | E40: 001 | F40: 001 | I40: SUELDO BÁSICO | J40: Nación | K40: CSF | L40: 10 | M40: 125655267000 | N40: 125655267000 | O40: 0 | P40: 0 | Q40: 53839898126 | R40: 53836577803 | S40: 53836577803 | T40: 53836577803 | U40: 0.4284730709 | V40: 0.4284466468
A41: A | B41: 01 | C41: 01 | D41: 01 | E41: 001 | F41: 002 | I41: GASTOS DE REPRESENTACIÓN | J41: Nación | K41: CSF | L41: 10 | M41: 4700000000 | N41: 4700000000 | O41: 0 | P41: 0 | Q41: 1998469097 | R41: 1998469097 | S41: 1998469097 | T41: 1998469097 | U41: 0.4252061909 | V41: 0.4252061909
A42: A | B42: 01 | C42: 01 | D42: 01 | E42: 001 | F42: 006 | I42: PRIMA DE SERVICIO | J42: Nación | K42: CSF | L42: 10 | M42: 6500000000 | N42: 6500000000 | O42: 0 | P42: 0 | Q42: 90438011 | R42: 90438011 | S42: 90438011 | T42: 90438011 | U42: 0.01391354015 | V42: 0.01391354015
A43: A | B43: 01 | C43: 01 | D43: 01 | E43: 001 | F43: 007 | I43: BONIFICACIÓN POR SERVICIOS PRESTADOS | J43: Nación | K43: CSF | L43: 10 | M43: 4500000000 | N43: 4500000000 | O43: 0 | P43: 0 | Q43: 1943283032 | R43: 1943283032 | S43: 1943283032 | T43: 1943283032 | U43: 0.4318406738 | V43: 0.4318406738
A44: A | B44: 01 | C44: 01 | D44: 01 | E44: 001 | F44: 008 | I44: HORAS EXTRAS, DOMINICALES, FESTIVOS Y RECARGOS | J44: Nación | K44: CSF | L44: 10 | M44: 700000000 | N44: 700000000 | O44: 0 | P44: 0 | Q44: 164463667 | R44: 164463667 | S44: 164463667 | T44: 164463667 | U44: 0.2349480957 | V44: 0.2349480957
A45: A | B45: 01 | C45: 01 | D45: 01 | E45: 001 | F45: 009 | I45: PRIMA DE NAVIDAD | J45: Nación | K45: CSF | L45: 10 | M45: 13500000000 | N45: 13500000000 | O45: 0 | P45: 0 | Q45: 44274109 | R45: 44274109 | S45: 44274109 | T45: 44274109 | U45: 0.00327956363 | V45: 0.00327956363
A46: A | B46: 01 | C46: 01 | D46: 01 | E46: 001 | F46: 010 | I46: PRIMA DE VACACIONES | J46: Nación | K46: CSF | L46: 10 | M46: 6500000000 | N46: 6500000000 | O46: 0 | P46: 0 | Q46: 2394167550 | R46: 2394167550 | S46: 2394167550 | T46: 2394167550 | U46: 0.3683334692 | V46: 0.3683334692
A47: A | B47: 01 | C47: 01 | D47: 02 | I47: CONTRIBUCIONES INHERENTES A LA NÓMINA | J47: Nación | K47: CSF | L47: 10 | M47: 60258109000 | N47: 60077723147 | O47: 180385853 | P47: 0 | Q47: 22468281504 | R47: 22468281504 | S47: 22468281504 | T47: 22468281504 | U47: 0.3728673514 | V47: 0.3728673514
A48: A | B48: 01 | C48: 01 | D48: 02 | E48: 001 | I48: APORTES A LA SEGURIDAD SOCIAL EN PENSIONES | J48: Nación | K48: CSF | L48: 10 | M48: 17100000000 | N48: 16919839573 | O48: 180160427 | P48: 0 | Q48: 7677999935 | R48: 7677999935 | S48: 7677999935 | T48: 7677999935 | U48: 0.4490058442 | V48: 0.4490058442
A49: A | B49: 01 | C49: 01 | D49: 02 | E49: 002 | I49: APORTES A LA SEGURIDAD SOCIAL EN SALUD | J49: Nación | K49: CSF | L49: 10 | M49: 12100000000 | N49: 12099881905 | O49: 118095 | P49: 0 | Q49: 5438195206 | R49: 5438195206 | S49: 5438195206 | T49: 5438195206 | U49: 0.4494376203 | V49: 0.4494376203
A50: A | B50: 01 | C50: 01 | D50: 02 | E50: 003 | I50: AUXILIO DE CESANTÍAS | J50: Nación | K50: CSF | L50: 10 | M50: 14158109000 | N50: 14158100347 | O50: 8653 | P50: 0 | Q50: 2928287063 | R50: 2928287063 | S50: 2928287063 | T50: 2928287063 | U50: 0.2068275547 | V50: 0.2068275547
A51: A | B51: 01 | C51: 01 | D51: 02 | E51: 004 | I51: APORTES A CAJAS DE COMPENSACIÓN FAMILIAR | J51: Nación | K51: CSF | L51: 10 | M51: 6800000000 | N51: 6799958417 | O51: 41583 | P51: 0 | Q51: 2575521100 | R51: 2575521100 | S51: 2575521100 | T51: 2575521100 | U51: 0.3787531029 | V51: 0.3787531029
A52: A | B52: 01 | C52: 01 | D52: 02 | E52: 005 | I52: APORTES GENERALES AL SISTEMA DE RIESGOS LABORALES | J52: Nación | K52: CSF | L52: 10 | M52: 1700000000 | N52: 1699995017 | O52: 4983 | P52: 0 | Q52: 627609200 | R52: 627609200 | S52: 627609200 | T52: 627609200 | U52: 0.3691818824 | V52: 0.3691818824
A53: A | B53: 01 | C53: 01 | D53: 02 | E53: 006 | I53: APORTES AL ICBF | J53: Nación | K53: CSF | L53: 10 | M53: 5000000000 | N53: 4999968785 | O53: 31215 | P53: 0 | Q53: 1931779400 | R53: 1931779400 | S53: 1931779400 | T53: 1931779400 | U53: 0.38635588 | V53: 0.38635588
A54: A | B54: 01 | C54: 01 | D54: 02 | E54: 007 | I54: APORTES AL SENA | J54: Nación | K54: CSF | L54: 10 | M54: 850000000 | N54: 849994769 | O54: 5231 | P54: 0 | Q54: 322316000 | R54: 322316000 | S54: 322316000 | T54: 322316000 | U54: 0.3791952941 | V54: 0.3791952941
A55: A | B55: 01 | C55: 01 | D55: 02 | E55: 008 | I55: APORTES A LA ESAP | J55: Nación | K55: CSF | L55: 10 | M55: 850000000 | N55: 849994769 | O55: 5231 | P55: 0 | Q55: 322316000 | R55: 322316000 | S55: 322316000 | T55: 322316000 | U55: 0.3791952941 | V55: 0.3791952941
A56: A | B56: 01 | C56: 01 | D56: 02 | E56: 009 | I56: APORTES A ESCUELAS INDUSTRIALES E INSTITUTOS TÉCNICOS | J56: Nación | K56: CSF | L56: 10 | M56: 1700000000 | N56: 1699989565 | O56: 10435 | P56: 0 | Q56: 644257600 | R56: 644257600 | S56: 644257600 | T56: 644257600 | U56: 0.3789750588 | V56: 0.3789750588
A57: A | B57: 01 | C57: 01 | D57: 03 | I57: REMUNERACIONES NO CONSTITUTIVAS DE FACTOR SALARIAL | J57: Nación | K57: CSF | L57: 10 | M57: 14712570000 | N57: 14712570000 | O57: 0 | P57: 0 | Q57: 5633606062 | R57: 5633606062 | S57: 5633606062 | T57: 5633606062 | U57: 0.3829110796 | V57: 0.3829110796
A58: A | B58: 01 | C58: 01 | D58: 03 | E58: 001 | I58: PRESTACIONES SOCIALES SEGÚN DEFINICIÓN LEGAL | J58: Nación | K58: CSF | L58: 10 | M58: 9412570000 | N58: 9412570000 | O58: 0 | P58: 0 | Q58: 3519523708 | R58: 3519523708 | S58: 3519523708 | T58: 3519523708 | U58: 0.3739174007 | V58: 0.3739174007
A59: A | B59: 01 | C59: 01 | D59: 03 | E59: 001 | F59: 001 | I59: VACACIONES | J59: Nación | K59: CSF | L59: 10 | M59: 8602570000 | N59: 8602570000 | O59: 0 | P59: 0 | Q59: 3267958576 | R59: 3267958576 | S59: 3267958576 | T59: 3267958576 | U59: 0.3798816605 | V59: 0.3798816605
A60: A | B60: 01 | C60: 01 | D60: 03 | E60: 001 | F60: 002 | I60: INDEMNIZACIÓN POR VACACIONES | J60: Nación | K60: CSF | L60: 10 | M60: 810000000 | N60: 810000000 | O60: 0 | P60: 0 | Q60: 251565132 | R60: 251565132 | S60: 251565132 | T60: 251565132 | U60: 0.310574237 | V60: 0.310574237
A61: A | B61: 01 | C61: 01 | D61: 03 | E61: 002 | I61: PRIMA TÉCNICA NO SALARIAL | J61: Nación | K61: CSF | L61: 10 | M61: 2200000000 | N61: 2200000000 | O61: 0 | P61: 0 | Q61: 848355188 | R61: 848355188 | S61: 848355188 | T61: 848355188 | U61: 0.3856159945 | V61: 0.3856159945
A62: A | B62: 01 | C62: 01 | D62: 03 | E62: 082 | I62: PRIMA ESPECIAL DE SERVICIOS | J62: Nación | K62: CSF | L62: 10 | M62: 3100000000 | N62: 3100000000 | O62: 0 | P62: 0 | Q62: 1265727166 | R62: 1265727166 | S62: 1265727166 | T62: 1265727166 | U62: 0.4082990858 | V62: 0.4082990858
A63: A | B63: 02 | I63: ADQUISICIÓN DE BIENES Y SERVICIOS | J63: Nación | K63: CSF | L63: 10 | M63: 52344273598 | N63: 5.033434972e+10 | O63: 1933764044 | P63: 76159835 | Q63: 3.16503315e+10 | R63: 1.341891554e+10 | S63: 1.337402381e+10 | T63: 1.335824768e+10 | U63: 0.6046570011 | V63: 0.2563588072
A64: A | B64: 02 | C64: 01 | I64: ADQUISICIÓN DE ACTIVOS NO FINANCIEROS | J64: Nación | K64: CSF | L64: 10 | M64: 120000000 | N64: 120000000 | O64: 0 | P64: 0 | Q64: 120000000 | R64: 26663364 | S64: 26663364 | T64: 26663364 | U64: 1 | V64: 0.2221947
A65: A | B65: 02 | C65: 01 | D65: 01 | I65: ACTIVOS FIJOS | J65: Nación | K65: CSF | L65: 10 | M65: 120000000 | N65: 120000000 | O65: 0 | P65: 0 | Q65: 120000000 | R65: 26663364 | S65: 26663364 | T65: 26663364 | U65: =+IFERROR(Q65/M65,0) -> 1 | V65: =+IFERROR(R65/M65,0) -> 0.2221947
A66: A | B66: 02 | C66: 01 | D66: 01 | E66: 004 | I66: MAQUINARIA Y EQUIPO | J66: Nación | K66: CSF | L66: 10 | M66: 0 | N66: 0 | O66: 0 | P66: 0 | Q66: 0 | R66: 0 | S66: 0 | T66: 0 | U66: 0 | V66: 0
A67: A | B67: 02 | C67: 01 | D67: 01 | E67: 004 | F67: 009 | I67: EQUIPO DE TRANSPORTE | J67: Nación | K67: CSF | L67: 10 | M67: 0 | N67: 0 | O67: 0 | P67: 0 | Q67: 0 | R67: 0 | S67: 0 | T67: 0 | U67: 0 | V67: 0
A68: A | B68: 02 | C68: 01 | D68: 01 | E68: 006 | I68: OTROS ACTIVOS FIJOS | J68: Nación | K68: CSF | L68: 10 | M68: 120000000 | N68: 120000000 | O68: 0 | P68: 0 | Q68: 120000000 | R68: 26663364 | S68: 26663364 | T68: 26663364 | U68: 1 | V68: 0.2221947
A69: A | B69: 02 | C69: 01 | D69: 01 | E69: 006 | F69: 002 | I69: PRODUCTOS DE LA PROPIEDAD INTELECTUAL | J69: Nación | K69: CSF | L69: 10 | M69: 120000000 | N69: 120000000 | O69: 0 | P69: 0 | Q69: 120000000 | R69: 26663364 | S69: 26663364 | T69: 26663364 | U69: 1 | V69: 0.2221947
A70: A | B70: 02 | C70: 02 | I70: ADQUISICIONES DIFERENTES DE ACTIVOS | J70: Nación | K70: CSF | L70: 10 | M70: 52147816905 | N70: 5.021434972e+10 | O70: 1933467186 | P70: 0 | Q70: 3.15303315e+10 | R70: 1.339225218e+10 | S70: 1.334736045e+10 | T70: 1.333158431e+10 | U70: 0.6046337771 | V70: 0.2568132853
A71: A | B71: 02 | C71: 02 | D71: 01 | I71: MATERIALES Y SUMINISTROS | J71: Nación | K71: CSF | L71: 10 | M71: 3821955057 | N71: 3606459392 | O71: 215495665 | P71: 0 | Q71: 2761556630 | R71: 2376434356 | S71: 2376434356 | T71: 2376434356 | U71: 0.722550786 | V71: 0.6217850082
A72: A | B72: 02 | C72: 02 | D72: 01 | E72: 002 | I72: PRODUCTOS ALIMENTICIOS, BEBIDAS Y TABACO; TEXTILES, PRENDAS DE VESTIR Y PRODUCTOS DE CUERO | J72: Nación | K72: CSF | L72: 10 | M72: 128860000 | N72: 109064985 | O72: 19795015 | P72: 0 | Q72: 85844693 | R72: 39449985 | S72: 39449985 | T72: 39449985 | U72: 0.6661857287 | V72: 0.3061460888
A73: A | B73: 02 | C73: 02 | D73: 01 | E73: 002 | F73: 003 | I73: PRODUCTOS DE MOLINERÍA, ALMIDONES Y PRODUCTOS DERIVADOS DEL ALMIDÓN; OTROS PRODUCTOS ALIMENTICIOS | J73: Nación | K73: CSF | L73: 10 | M73: 47000000 | N73: 43794285 | O73: 3205715 | P73: 0 | Q73: 43794285 | R73: 39179285 | S73: 39179285 | T73: 39179285 | U73: 0.9317932979 | V73: 0.8336018085
A74: A | B74: 02 | C74: 02 | D74: 01 | E74: 002 | F74: 007 | I74: ARTÍCULOS TEXTILES (EXCEPTO PRENDAS DE VESTIR) | J74: Nación | K74: CSF | L74: 10 | M74: 390700 | N74: 270700 | O74: 120000 | P74: 0 | Q74: 270700 | R74: 270700 | S74: 270700 | T74: 270700 | U74: 0.6928589711 | V74: 0.6928589711
A75: A | B75: 02 | C75: 02 | D75: 01 | E75: 002 | F75: 008 | I75: DOTACIÓN (PRENDAS DE VESTIR Y CALZADO) | J75: Nación | K75: CSF | L75: 10 | M75: 81469300 | N75: 65000000 | O75: 16469300 | P75: 0 | Q75: 41779708 | R75: 0 | S75: 0 | T75: 0 | U75: 0.5128276295 | V75: 0
A76: A | B76: 02 | C76: 02 | D76: 01 | E76: 003 | I76: OTROS BIENES TRANSPORTABLES (EXCEPTO PRODUCTOS METÁLICOS, MAQUINARIA Y EQUIPO) | J76: Nación | K76: CSF | L76: 10 | M76: 764995000 | N76: 731789350 | O76: 33205650 | P76: 0 | Q76: 335789350 | R76: 53236425.91 | S76: 53236425.91 | T76: 53236425.91 | U76: 0.4389431957 | V76: 0.06959055407
A77: A | B77: 02 | C77: 02 | D77: 01 | E77: 003 | F77: 002 | I77: PASTA O PULPA, PAPEL Y PRODUCTOS DE PAPEL; IMPRESOS Y ARTÍCULOS RELACIONADOS | J77: Nación | K77: CSF | L77: 10 | M77: 168750000 | N77: 144640850 | O77: 24109150 | P77: 0 | Q77: 25740850 | R77: 750000 | S77: 750000 | T77: 750000 | U77: 0.1525383704 | V77: 0.004444444444
A78: A | B78: 02 | C78: 02 | D78: 01 | E78: 003 | F78: 003 | I78: PRODUCTOS DE HORNOS DE COQUE; PRODUCTOS DE REFINACIÓN DE PETRÓLEO Y COMBUSTIBLE NUCLEAR | J78: Nación | K78: CSF | L78: 10 | M78: 283350000 | N78: 280350000 | O78: 3000000 | P78: 0 | Q78: 280350000 | R78: 22787926 | S78: 22787926 | T78: 22787926 | U78: 0.9894123875 | V78: 0.08042324334
A79: A | B79: 02 | C79: 02 | D79: 01 | E79: 003 | F79: 005 | I79: OTROS PRODUCTOS QUÍMICOS; FIBRAS ARTIFICIALES (O FIBRAS INDUSTRIALES HECHAS POR EL HOMBRE) | J79: Nación | K79: CSF | L79: 10 | M79: 13900000 | N79: 13900000 | O79: 0 | P79: 0 | Q79: 900000 | R79: 900000 | S79: 900000 | T79: 900000 | U79: 0.06474820144 | V79: 0.06474820144
A80: A | B80: 02 | C80: 02 | D80: 01 | E80: 003 | F80: 006 | I80: PRODUCTOS DE CAUCHO Y PLÁSTICO | J80: Nación | K80: CSF | L80: 10 | M80: 25140000 | N80: 25050000 | O80: 90000 | P80: 0 | Q80: 1050000 | R80: 1050000 | S80: 1050000 | T80: 1050000 | U80: 0.04176610979 | V80: 0.04176610979
A81: A | B81: 02 | C81: 02 | D81: 01 | E81: 003 | F81: 008 | I81: OTROS BIENES TRANSPORTABLES N.C.P. | J81: Nación | K81: CSF | L81: 10 | M81: 273855000 | N81: 267848500 | O81: 6006500 | P81: 0 | Q81: 27748500 | R81: 27748499.91 | S81: 27748499.91 | T81: 27748499.91 | U81: 0.101325519 | V81: 0.1013255187
A82: A | B82: 02 | C82: 02 | D82: 01 | E82: 004 | I82: PRODUCTOS METÁLICOS Y PAQUETES DE SOFTWARE | J82: Nación | K82: CSF | L82: 10 | M82: 2928100057 | N82: 2765605057 | O82: 162495000 | P82: 0 | Q82: 2339922587 | R82: 2283747945 | S82: 2283747945 | T82: 2283747945 | U82: 0.799126581 | V82: 0.7799419081
A83: A | B83: 02 | C83: 02 | D83: 01 | E83: 004 | F83: 004 | I83: MAQUINARIA PARA USOS ESPECIALES | J83: Nación | K83: CSF | L83: 10 | M83: 12145000 | N83: 0 | O83: 12145000 | P83: 0 | Q83: 0 | R83: 0 | S83: 0 | T83: 0 | U83: 0 | V83: 0
A84: A | B84: 02 | C84: 02 | D84: 01 | E84: 004 | F84: 005 | I84: MAQUINARIA DE OFICINA, CONTABILIDAD E INFORMÁTICA | J84: Nación | K84: CSF | L84: 10 | M84: 2750000 | N84: 0 | O84: 2750000 | P84: 0 | Q84: 0 | R84: 0 | S84: 0 | T84: 0 | U84: 0 | V84: 0
A85: A | B85: 02 | C85: 02 | D85: 01 | E85: 004 | F85: 006 | I85: MAQUINARIA Y APARATOS ELÉCTRICOS | J85: Nación | K85: CSF | L85: 10 | M85: 2000000 | N85: 0 | O85: 2000000 | P85: 0 | Q85: 0 | R85: 0 | S85: 0 | T85: 0 | U85: 0 | V85: 0
A86: A | B86: 02 | C86: 02 | D86: 01 | E86: 004 | F86: 007 | I86: EQUIPO Y APARATOS DE RADIO, TELEVISIÓN Y COMUNICACIONES | J86: Nación | K86: CSF | L86: 10 | M86: 2911205057 | N86: 2765605057 | O86: 145600000 | P86: 0 | Q86: 2339922587 | R86: 2283747945 | S86: 2283747945 | T86: 2283747945 | U86: 0.8037642631 | V86: 0.7844682531
A87: A | B87: 02 | C87: 02 | D87: 02 | I87: ADQUISICIÓN DE SERVICIOS | J87: Nación | K87: CSF | L87: 10 | M87: 48325861848 | N87: 4.660789033e+10 | O87: 1717971521 | P87: 0 | Q87: 2.876877487e+10 | R87: 1.101581782e+10 | S87: 1.097092609e+10 | T87: 1.095514996e+10 | U87: 0.595308056 | V87: 0.2279487091
A88: A | B88: 02 | C88: 02 | D88: 02 | E88: 005 | I88: SERVICIOS DE LA CONSTRUCCIÓN | J88: Nación | K88: CSF | L88: 10 | M88: 14377681 | N88: 14377681 | O88: 0 | P88: 0 | Q88: 14377681 | R88: 14377681 | S88: 14377681 | T88: 14377681 | U88: 1 | V88: 1
A89: A | B89: 02 | C89: 02 | D89: 02 | E89: 005 | F89: 004 | I89: SERVICIOS DE CONSTRUCCIÓN | J89: Nación | K89: CSF | L89: 10 | M89: 14377681 | N89: 14377681 | O89: 0 | P89: 0 | Q89: 14377681 | R89: 14377681 | S89: 14377681 | T89: 14377681 | U89: 1 | V89: 1
A90: A | B90: 02 | C90: 02 | D90: 02 | E90: 006 | I90: SERVICIOS DE ALOJAMIENTO; SERVICIOS DE SUMINISTRO DE COMIDAS Y BEBIDAS; SERVICIOS DE TRANSPORTE; Y SERVICIOS DE DISTRIBUCIÓN DE ELECTRICIDAD, GAS Y AGUA | J90: Nación | K90: CSF | L90: 10 | M90: 4368988918 | N90: 4072530615 | O90: 296458303 | P90: 0 | Q90: 1710457187 | R90: 1058803107 | S90: 1058107227 | T90: 1057412146 | U90: 0.3914995481 | V90: 0.2423451116
A91: A | B91: 02 | C91: 02 | D91: 02 | E91: 006 | F91: 003 | I91: ALOJAMIENTO; SERVICIOS DE SUMINISTROS DE COMIDAS Y BEBIDAS | J91: Nación | K91: CSF | L91: 10 | M91: 388468918 | N91: 388138434 | O91: 330484 | P91: 0 | Q91: 248246602 | R91: 166221993 | S91: 166221993 | T91: 165526912 | U91: 0.6390385189 | V91: 0.4278900712
A92: A | B92: 02 | C92: 02 | D92: 02 | E92: 006 | F92: 004 | I92: SERVICIOS DE TRANSPORTE DE PASAJEROS | J92: Nación | K92: CSF | L92: 10 | M92: 2192920000 | N92: 2160870000 | O92: 32050000 | P92: 0 | Q92: 701567192 | R92: 227718038 | S92: 227318038 | T92: 227318038 | U92: 0.319923751 | V92: 0.1038423828
A93: A | B93: 02 | C93: 02 | D93: 02 | E93: 006 | F93: 007 | I93: SERVICIOS DE APOYO AL TRANSPORTE | J93: Nación | K93: CSF | L93: 10 | M93: 210000000 | N93: 176282225 | O93: 33717775 | P93: 0 | Q93: 98465795 | R93: 59709819 | S93: 59413939 | T93: 59413939 | U93: 0.4688847381 | V93: 0.2843324714
A94: A | B94: 02 | C94: 02 | D94: 02 | E94: 006 | F94: 008 | I94: SERVICIOS POSTALES Y DE MENSAJERÍA | J94: Nación | K94: CSF | L94: 10 | M94: 262000000 | N94: 231639956 | O94: 30360044 | P94: 0 | Q94: 231639956 | R94: 178587178 | S94: 178587178 | T94: 178587178 | U94: 0.8841219695 | V94: 0.6816304504
A95: A | B95: 02 | C95: 02 | D95: 02 | E95: 006 | F95: 009 | I95: SERVICIOS DE DISTRIBUCIÓN DE ELECTRICIDAD, GAS Y AGUA (POR CUENTA PROPIA) | J95: Nación | K95: CSF | L95: 10 | M95: 1315600000 | N95: 1115600000 | O95: 200000000 | P95: 0 | Q95: 430537642 | R95: 426566079 | S95: 426566079 | T95: 426566079 | U95: 0.3272557327 | V95: 0.3242369102
A96: A | B96: 02 | C96: 02 | D96: 02 | E96: 007 | I96: SERVICIOS FINANCIEROS Y SERVICIOS CONEXOS, SERVICIOS INMOBILIARIOS Y SERVICIOS DE LEASING | J96: Nación | K96: CSF | L96: 10 | M96: 2869257314 | N96: 2546121450 | O96: 323135863.8 | P96: 0 | Q96: 1635649980 | R96: 766192279.7 | S96: 732115727.9 | T96: 732115727.9 | U96: 0.5700604028 | V96: 0.2670350533
A97: A | B97: 02 | C97: 02 | D97: 02 | E97: 007 | F97: 001 | I97: SERVICIOS FINANCIEROS Y SERVICIOS CONEXOS | J97: Nación | K97: CSF | L97: 10 | M97: 275000000 | N97: 258413616 | O97: 16586384 | P97: 0 | Q97: 257913616 | R97: 0 | S97: 0 | T97: 0 | U97: =+IFERROR(Q97/M97,0) -> 0.9378676945 | V97: =+IFERROR(R97/M97,0) -> 0
A98: A | B98: 02 | C98: 02 | D98: 02 | E98: 007 | F98: 002 | I98: SERVICIOS INMOBILIARIOS | J98: Nación | K98: CSF | L98: 10 | M98: 2197407314 | N98: 1890877256 | O98: 306530057.8 | P98: 0 | Q98: 1013893945 | R98: 747533710.7 | S98: 713457158.9 | T98: 713457158.9 | U98: 0.4614046466 | V98: 0.3401889608
A99: A | B99: 02 | C99: 02 | D99: 02 | E99: 007 | F99: 003 | I99: SERVICIOS DE ARRENDAMIENTO O ALQUILER SIN OPERARIO | J99: Nación | K99: CSF | L99: 10 | M99: 396850000 | N99: 396830578 | O99: 19422 | P99: 0 | Q99: 363842419 | R99: 18658569 | S99: 18658569 | T99: 18658569 | U99: 0.9168260527 | V99: 0.04701667885
A100: A | B100: 02 | C100: 02 | D100: 02 | E100: 008 | I100: SERVICIOS PRESTADOS A LAS EMPRESAS Y SERVICIOS DE PRODUCCIÓN | J100: Nación | K100: CSF | L100: 10 | M100: 32966435035 | N100: 32641164667 | O100: 325270368 | P100: 0 | Q100: 18882579124 | R100: 7417767696 | S100: 7413267696 | T100: 7398186641 | U100: 0.5727819555 | V100: 0.2250097012
A101: A | B101: 02 | C101: 02 | D101: 02 | E101: 008 | F101: 002 | I101: SERVICIOS JURÍDICOS Y CONTABLES | J101: Nación | K101: CSF | L101: 10 | M101: 7634390707 | N101: 7531909900 | O101: 102480807 | P101: 0 | Q101: 6193494066 | R101: 2340860722 | S101: 2340860722 | T101: 2340860722 | U101: 0.8112623919 | V101: 0.3066205035
A102: A | B102: 02 | C102: 02 | D102: 02 | E102: 008 | F102: 003 | I102: OTROS SERVICIOS PROFESIONALES, CIENTÍFICOS Y TÉCNICOS | J102: Nación | K102: CSF | L102: 10 | M102: 8660161359 | N102: 8626700000 | O102: 33461359 | P102: 0 | Q102: 6178283328 | R102: 2245249995 | S102: 2240749995 | T102: 2240749995 | U102: 0.7134143432 | V102: 0.2592619124
A103: A | B103: 02 | C103: 02 | D103: 02 | E103: 008 | F103: 004 | I103: SERVICIOS DE TELECOMUNICACIONES, TRANSMISIÓN Y SUMINISTRO DE INFORMACIÓN | J103: Nación | K103: CSF | L103: 10 | M103: 4855750000 | N103: 4853714315 | O103: 2035685 | P103: 0 | Q103: 2203651391 | R103: 1044503965 | S103: 1044503965 | T103: 1029422910 | U103: 0.4538230739 | V103: 0.215106619
A104: A | B104: 02 | C104: 02 | D104: 02 | E104: 008 | F104: 005 | I104: SERVICIOS DE SOPORTE | J104: Nación | K104: CSF | L104: 10 | M104: 9187774868 | N104: 9187543337 | O104: 231531 | P104: 0 | Q104: 4121821725 | R104: 1626665934 | S104: 1626665934 | T104: 1626665934 | U104: 0.4486202355 | V104: 0.1770467776
A105: A | B105: 02 | C105: 02 | D105: 02 | E105: 008 | F105: 007 | I105: SERVICIOS DE MANTENIMIENTO, REPARACIÓN E INSTALACIÓN (EXCEPTO SERVICIOS DE CONSTRUCCIÓN) | J105: Nación | K105: CSF | L105: 10 | M105: 2628358101 | N105: 2441297115 | O105: 187060986 | P105: 0 | Q105: 185328614 | R105: 160487079 | S105: 160487079 | T105: 160487079 | U105: 0.07051117347 | V105: 0.06105982246
A106: A | B106: 02 | C106: 02 | D106: 02 | E106: 009 | I106: SERVICIOS PARA LA COMUNIDAD, SOCIALES Y PERSONALES | J106: Nación | K106: CSF | L106: 10 | M106: 6121802900 | N106: 5349546589 | O106: 772256311 | P106: 0 | Q106: 4897914078 | R106: 693463678 | S106: 690172678 | T106: 690172678 | U106: 0.8000770619 | V106: 0.1132776879
A107: A | B107: 02 | C107: 02 | D107: 02 | E107: 009 | F107: 003 | I107: SERVICIOS PARA EL CUIDADO DE LA SALUD HUMANA Y SERVICIOS SOCIALES | J107: Nación | K107: CSF | L107: 10 | M107: 350000000 | N107: 349993689 | O107: 6311 | P107: 0 | Q107: 105243689 | R107: 3291000 | S107: 0 | T107: 0 | U107: 0.3006962543 | V107: 0.009402857143
A108: A | B108: 02 | C108: 02 | D108: 02 | E108: 009 | F108: 004 | I108: SERVICIOS DE ALCANTARILLADO, RECOLECCIÓN, TRATAMIENTO Y DISPOSICIÓN DE DESECHOS Y OTROS SERVICIOS DE SANEAMIENTO AMBIENTAL | J108: Nación | K108: CSF | L108: 10 | M108: 312355000 | N108: 302355000 | O108: 10000000 | P108: 0 | Q108: 95472489 | R108: 94820431 | S108: 94820431 | T108: 94820431 | U108: 0.3056537882 | V108: 0.3035662339
A109: A | B109: 02 | C109: 02 | D109: 02 | E109: 009 | F109: 007 | I109: OTROS SERVICIOS | J109: Nación | K109: CSF | L109: 10 | M109: 5459447900 | N109: 4697197900 | O109: 762250000 | P109: 0 | Q109: 4697197900 | R109: 595352247 | S109: 595352247 | T109: 595352247 | U109: 0.8603796549 | V109: 0.1090498999
A110: A | B110: 02 | C110: 02 | D110: 02 | E110: 010 | I110: VIÁTICOS DE LOS FUNCIONARIOS EN COMISIÓN | J110: Nación | K110: CSF | L110: 10 | M110: 1985000000 | N110: 1984149325 | O110: 850675 | P110: 0 | Q110: 1627796820 | R110: 1065213383 | S110: 1062885082 | T110: 1062885082 | U110: 0.8200487758 | V110: 0.5366314272
A111: A | B111: 03 | I111: TRANSFERENCIAS CORRIENTES | J111: Nación | K111: CSF | L111: 10 | M111: 252715870505 | N111: 1.820656811e+11 | O111: 5.239012791e+10 | P111: 18260061505 | Q111: 1.734668665e+11 | R111: 6.751422998e+10 | S111: 6.686048608e+10 | T111: 6.546877201e+10 | U111: 0.6864106563 | V111: 0.2671546897
A112: A | B112: 03 | I112: TRANSFERENCIAS CORRIENTES | J112: Nación | K112: SSF | L112: 16 | M112: 153894590000 | N112: 53884327424 | O112: 100010262576 | P112: 0 | Q112: 48523784086 | R112: 2.768876515e+10 | S112: 2.408987219e+10 | T112: 2.408811151e+10 | U112: 0.3153053274 | V112: 0.1799203283
A113: A | B113: 03 | C113: 03 | I113: A ENTIDADES DEL GOBIERNO | J113: Nación | K113: CSF | L113: 10 | M113: 251065185505 | N113: 1.804149961e+11 | O113: 5.239012791e+10 | P113: 18260061505 | Q113: 1.72855253e+11 | R113: 6.697186097e+10 | S113: 6.631811707e+10 | T113: 6.492640301e+10 | U113: 0.6884875444 | V113: 0.2667508872
A114: A | B114: 03 | C114: 03 | I114: A ENTIDADES DEL GOBIERNO | J114: Nación | K114: SSF | L114: 16 | M114: 153894590000 | N114: 53884327424 | O114: 100010262576 | P114: 0 | Q114: 48523784086 | R114: 2.768876515e+10 | S114: 2.408987219e+10 | T114: 2.408811151e+10 | U114: 0.3153053274 | V114: 0.1799203283
A115: A | B115: 03 | C115: 03 | D115: 01 | I115: A ÓRGANOS DEL PGN | J115: Nación | K115: CSF | L115: 10 | M115: 251065185505 | N115: 1.804149961e+11 | O115: 5.239012791e+10 | P115: 18260061505 | Q115: 1.72855253e+11 | R115: 6.697186097e+10 | S115: 6.631811707e+10 | T115: 6.492640301e+10 | U115: 0.6884875444 | V115: 0.2667508872
A116: A | B116: 03 | C116: 03 | D116: 01 | I116: A ÓRGANOS DEL PGN | J116: Nación | K116: SSF | L116: 16 | M116: 153894590000 | N116: 53884327424 | O116: 100010262576 | P116: 0 | Q116: 48523784086 | R116: 2.768876515e+10 | S116: 2.408987219e+10 | T116: 2.408811151e+10 | U116: 0.3153053274 | V116: 0.1799203283
A117: A | B117: 03 | C117: 03 | D117: 01 | E117: 007 | I117: DEFENSORÍA PÚBLICA (LEY 24 DE 1992) | J117: Nación | K117: CSF | L117: 10 | M117: 232478124000 | N117: 1.800880001e+11 | O117: 5.239012387e+10 | P117: 0 | Q117: 1.725716294e+11 | R117: 6.691575757e+10 | S117: 6.626201367e+10 | T117: 6.487029961e+10 | U117: 0.7423134117 | V117: 0.2878367927
A118: A | B118: 03 | C118: 03 | D118: 01 | E118: 008 | I118: FONDO PARA LA DEFENSA DE LOS DERECHOS E INTERESES COLECTIVOS -LEY 472 DE 1998. | J118: Nación | K118: SSF | L118: 16 | M118: 153325000000 | N118: 53884327424 | O118: 99440672576 | P118: 0 | Q118: 48523784086 | R118: 2.768876515e+10 | S118: 2.408987219e+10 | T118: 2.408811151e+10 | U118: 0.3164766612 | V118: 0.1805887178
A119: A | B119: 03 | C119: 03 | D119: 01 | E119: 061 | I119: FONDO ESPECIAL COMISIÓN NACIONAL DE BÚSQUEDA (ART. 18 LEY 971 DE 2005) | J119: Nación | K119: SSF | L119: 16 | M119: 569590000 | N119: 0 | O119: 569590000 | P119: 0 | Q119: 0 | R119: 0 | S119: 0 | T119: 0 | U119: 0 | V119: 0
A120: A | B120: 03 | C120: 03 | D120: 01 | E120: 068 | I120: COMISIÓN DE BÚSQUEDA DE PERSONAS DESAPARECIDAS LEY 589 DE 2000 | J120: Nación | K120: CSF | L120: 10 | M120: 327000000 | N120: 326995963 | O120: 4037 | P120: 0 | Q120: 283623677 | R120: 56103399 | S120: 56103399 | T120: 56103399 | U120: 0.8673506942 | V120: 0.1715700275
A121: A | B121: 03 | C121: 03 | D121: 01 | E121: 999 | I121: OTRAS TRANSFERENCIAS - DISTRIBUCIÓN PREVIO CONCEPTO DGPPN | J121: Nación | K121: CSF | L121: 10 | M121: 18260061505 | N121: 0 | O121: 0 | P121: 18260061505 | Q121: 0 | R121: 0 | S121: 0 | T121: 0 | U121: 0 | V121: 0
A122: A | B122: 03 | C122: 04 | I122: PRESTACIONES PARA CUBRIR RIESGOS SOCIALES | J122: Nación | K122: CSF | L122: 10 | M122: 1650685000 | N122: 1650685000 | O122: 0 | P122: 0 | Q122: 611613479 | R122: 542369004 | S122: 542369004 | T122: 542369004 | U122: 0.3705210134 | V122: 0.3285720801
A123: A | B123: 03 | C123: 04 | D123: 02 | I123: PRESTACIONES SOCIALES RELACIONADAS CON EL EMPLEO | J123: Nación | K123: CSF | L123: 10 | M123: 1650685000 | N123: 1650685000 | O123: 0 | P123: 0 | Q123: 611613479 | R123: 542369004 | S123: 542369004 | T123: 542369004 | U123: 0.3705210134 | V123: 0.3285720801
A124: A | B124: 03 | C124: 04 | D124: 02 | E124: 012 | I124: INCAPACIDADES Y LICENCIAS DE MATERNIDAD Y PATERNIDAD (NO DE PENSIONES) | J124: Nación | K124: CSF | L124: 10 | M124: 1650685000 | N124: 1650685000 | O124: 0 | P124: 0 | Q124: 611613479 | R124: 542369004 | S124: 542369004 | T124: 542369004 | U124: 0.3705210134 | V124: 0.3285720801
A125: A | B125: 03 | C125: 04 | D125: 02 | E125: 012 | F125: 001 | I125: INCAPACIDADES (NO DE PENSIONES) | J125: Nación | K125: CSF | L125: 10 | M125: 850685000 | N125: 850685000 | O125: 0 | P125: 0 | Q125: 377753909 | R125: 316067240 | S125: 316067240 | T125: 316067240 | U125: 0.4440585046 | V125: 0.3715443907
A126: A | B126: 03 | C126: 04 | D126: 02 | E126: 012 | F126: 002 | I126: LICENCIAS DE MATERNIDAD Y PATERNIDAD (NO DE PENSIONES) | J126: Nación | K126: CSF | L126: 10 | M126: 800000000 | N126: 800000000 | O126: 0 | P126: 0 | Q126: 233859570 | R126: 226301764 | S126: 226301764 | T126: 226301764 | U126: 0.2923244625 | V126: 0.282877205
A127: A | B127: 08 | I127: GASTOS POR TRIBUTOS, MULTAS, SANCIONES E INTERESES DE MORA | J127: Nación | K127: CSF | L127: 10 | M127: 485000000 | N127: 485000000 | O127: 0 | P127: 0 | Q127: 438777593 | R127: 438065758 | S127: 438065758 | T127: 438065758 | U127: 0.904696068 | V127: 0.903228367
A128: A | B128: 08 | I128: GASTOS POR TRIBUTOS, MULTAS, SANCIONES E INTERESES DE MORA | J128: Nación | K128: SSF | L128: 11 | M128: 1881077000 | N128: 0 | O128: 1881077000 | P128: 0 | Q128: 0 | R128: 0 | S128: 0 | T128: 0 | U128: 0 | V128: 0
A129: A | B129: 08 | C129: 01 | I129: IMPUESTOS | J129: Nación | K129: CSF | L129: 10 | M129: 485000000 | N129: 485000000 | O129: 0 | P129: 0 | Q129: 438777593 | R129: 438065758 | S129: 438065758 | T129: 438065758 | U129: =+IFERROR(Q129/M129,0) -> 0.904696068 | V129: =+IFERROR(R129/M129,0) -> 0.903228367
A130: A | B130: 08 | C130: 01 | D130: 02 | I130: IMPUESTOS TERRITORIALES | J130: Nación | K130: CSF | L130: 10 | M130: 485000000 | N130: 485000000 | O130: 0 | P130: 0 | Q130: 438777593 | R130: 438065758 | S130: 438065758 | T130: 438065758 | U130: 0.904696068 | V130: 0.903228367
A131: A | B131: 08 | C131: 01 | D131: 02 | E131: 001 | I131: IMPUESTO PREDIAL Y SOBRETASA AMBIENTAL | J131: Nación | K131: CSF | L131: 10 | M131: 470000000 | N131: 470000000 | O131: 0 | P131: 0 | Q131: 438115758 | R131: 438065758 | S131: 438065758 | T131: 438065758 | U131: 0.9321611872 | V131: 0.9320548043
A132: A | B132: 08 | C132: 01 | D132: 02 | E132: 006 | I132: IMPUESTO SOBRE VEHÍCULOS AUTOMOTORES | J132: Nación | K132: CSF | L132: 10 | M132: 15000000 | N132: 15000000 | O132: 0 | P132: 0 | Q132: 661835 | R132: 0 | S132: 0 | T132: 0 | U132: 0.04412233333 | V132: 0
A133: A | B133: 08 | C133: 04 | I133: CONTRIBUCIONES | J133: Nación | K133: SSF | L133: 11 | M133: 1881077000 | N133: 0 | O133: 1881077000 | P133: 0 | Q133: 0 | R133: 0 | S133: 0 | T133: 0 | U133: 0 | V133: 0
A134: A | B134: 08 | C134: 04 | D134: 01 | I134: CUOTA DE FISCALIZACIÓN Y AUDITAJE | J134: Nación | K134: SSF | L134: 11 | M134: 1881077000 | N134: 0 | O134: 1881077000 | P134: 0 | Q134: 0 | R134: 0 | S134: 0 | T134: 0 | U134: 0 | V134: 0
A135: B | I135: SERVICIO DE LA DEUDA PÚBLICA | J135: Nación | K135: CSF | L135: 11 | M135: 247291740 | N135: 0 | O135: 247291740 | P135: 0 | Q135: 0 | R135: 0 | S135: 0 | T135: 0 | U135: 0 | V135: 0
A136: B | B136: 10 | I136: SERVICIO DE LA DEUDA PÚBLICA INTERNA | J136: Nación | K136: CSF | L136: 11 | M136: 247291740 | N136: 0 | O136: 247291740 | P136: 0 | Q136: 0 | R136: 0 | S136: 0 | T136: 0 | U136: 0 | V136: 0
A137: B | B137: 10 | C137: 04 | I137: FONDO DE CONTINGENCIAS | J137: Nación | K137: CSF | L137: 11 | M137: 247291740 | N137: 0 | O137: 247291740 | P137: 0 | Q137: 0 | R137: 0 | S137: 0 | T137: 0 | U137: 0 | V137: 0
A138: B | B138: 10 | C138: 04 | D138: 01 | I138: APORTES AL FONDO DE CONTINGENCIAS | J138: Nación | K138: CSF | L138: 11 | M138: 247291740 | N138: 0 | O138: 247291740 | P138: 0 | Q138: 0 | R138: 0 | S138: 0 | T138: 0 | U138: 0 | V138: 0
A139: C | I139: INVERSION | J139: Nación | K139: CSF | L139: 11 | M139: 20000000000 | N139: 14519287288 | O139: 5480712712 | P139: 0 | Q139: 10878112801 | R139: 3947994024 | S139: 3920223621 | T139: 3874323621 | U139: 0.54390564 | V139: 0.1973997012
A140: C | I140: INVERSION | J140: Nación | K140: CSF | L140: 13 | M140: 37735679763 | N140: 24334540568 | O140: 13401139195 | P140: 0 | Q140: 17424951440 | R140: 5506754683 | S140: 5442200145 | T140: 5393260145 | U140: 0.4617632848 | V140: 0.1459296538
A141: C | I141: INVERSION | J141: Nación | K141: CSF | L141: 15 | M141: 2640000000 | N141: 629511788 | O141: 2010488212 | P141: 0 | Q141: 619650188 | R141: 0 | S141: 0 | T141: 0 | U141: 0.2347159803 | V141: 0
A142: C | B142: 2502 | I142: PROMOCIÓN, PROTECCIÓN Y DEFENSA DE LOS DERECHOS HUMANOS Y EL DERECHO INTERNACIONAL HUMANITARIO | J142: Nación | K142: CSF | L142: 11 | M142: 15500000000 | N142: 13864005821 | O142: 1635994179 | P142: 0 | Q142: 10669612801 | R142: 3897960691 | S142: 3870190288 | T142: 3824290288 | U142: 0.6883621162 | V142: 0.2514813349
A143: C | B143: 2502 | I143: PROMOCIÓN, PROTECCIÓN Y DEFENSA DE LOS DERECHOS HUMANOS Y EL DERECHO INTERNACIONAL HUMANITARIO | J143: Nación | K143: CSF | L143: 13 | M143: 26019181301 | N143: 24065399496 | O143: 1953781805 | P143: 0 | Q143: 17424951440 | R143: 5506754683 | S143: 5442200145 | T143: 5393260145 | U143: 0.6696963766 | V143: 0.2116421197
A144: C | B144: 2502 | I144: PROMOCIÓN, PROTECCIÓN Y DEFENSA DE LOS DERECHOS HUMANOS Y EL DERECHO INTERNACIONAL HUMANITARIO | J144: Nación | K144: CSF | L144: 15 | M144: 2640000000 | N144: 629511788 | O144: 2010488212 | P144: 0 | Q144: 619650188 | R144: 0 | S144: 0 | T144: 0 | U144: 0.2347159803 | V144: 0
A145: C | B145: 2502 | C145: 1000 | I145: INTERSUBSECTORIAL GOBIERNO | J145: Nación | K145: CSF | L145: 11 | M145: 15500000000 | N145: 13864005821 | O145: 1635994179 | P145: 0 | Q145: 10669612801 | R145: 3897960691 | S145: 3870190288 | T145: 3824290288 | U145: 0.6883621162 | V145: 0.2514813349
A146: C | B146: 2502 | C146: 1000 | I146: INTERSUBSECTORIAL GOBIERNO | J146: Nación | K146: CSF | L146: 13 | M146: 26019181301 | N146: 24065399496 | O146: 1953781805 | P146: 0 | Q146: 17424951440 | R146: 5506754683 | S146: 5442200145 | T146: 5393260145 | U146: 0.6696963766 | V146: 0.2116421197
A147: C | B147: 2502 | C147: 1000 | I147: INTERSUBSECTORIAL GOBIERNO | J147: Nación | K147: CSF | L147: 15 | M147: 2640000000 | N147: 629511788 | O147: 2010488212 | P147: 0 | Q147: 619650188 | R147: 0 | S147: 0 | T147: 0 | U147: 0.2347159803 | V147: 0
A148: C | B148: 2502 | C148: 1000 | D148: 25 | I148: FORTALECIMIENTO DE LA ATENCIÓN, PROMOCIÓN, DIVULGACIÓN, PROTECCIÓN Y DEFENSA DE DERECHOS HUMANOS A LA POBLACIÓN Y GRUPOS DE INTERÉS EN EL TERRITORIO NACIONAL NACIONAL | J148: Nación | K148: CSF | L148: 11 | M148: 10500000000 | N148: 10324597998 | O148: 175402002 | P148: 0 | Q148: 7834077507 | R148: 2803297600 | S148: 2784430819 | T148: 2738530819 | U148: 0.7461026197 | V148: 0.2669807238
A149: C | B149: 2502 | C149: 1000 | D149: 25 | I149: FORTALECIMIENTO DE LA ATENCIÓN, PROMOCIÓN, DIVULGACIÓN, PROTECCIÓN Y DEFENSA DE DERECHOS HUMANOS A LA POBLACIÓN Y GRUPOS DE INTERÉS EN EL TERRITORIO NACIONAL NACIONAL | J149: Nación | K149: CSF | L149: 13 | M149: 10500000000 | N149: 10159969252 | O149: 340030748 | P149: 0 | Q149: 6466442326 | R149: 1614275419 | S149: 1597644237 | T149: 1581644237 | U149: 0.6158516501 | V149: 0.1537405161
A150: C | B150: 2502 | C150: 1000 | D150: 25 | I150: FORTALECIMIENTO DE LA ATENCIÓN, PROMOCIÓN, DIVULGACIÓN, PROTECCIÓN Y DEFENSA DE DERECHOS HUMANOS A LA POBLACIÓN Y GRUPOS DE INTERÉS EN EL TERRITORIO NACIONAL NACIONAL | J150: Nación | K150: CSF | L150: 15 | M150: 2640000000 | N150: 629511788 | O150: 2010488212 | P150: 0 | Q150: 619650188 | R150: 0 | S150: 0 | T150: 0 | U150: 0.2347159803 | V150: 0
A151: C | B151: 2502 | C151: 1000 | D151: 25 | E151: 0 | F151: 2502002 | I151: SERVICIO DE ASISTENCIA TÉCNICA PARA ATENCIÓN, ORIENTACIÓN Y ASESORÍA EN MATERIA DE DERECHOS HUMANOS, EL DERECHO INTERNACIONAL HUMANITARIO Y EN ESCENARIOS DE PAZ | J151: Nación | K151: CSF | L151: 11 | M151: 4335026770 | N151: 4265124770 | O151: 69902000.49 | P151: 0 | Q151: 2587553392 | R151: 1023902417 | S151: 1007953831 | T151: 1007953831 | U151: 0.5968944436 | V151: 0.2361928706
A152: C | B152: 2502 | C152: 1000 | D152: 25 | E152: 0 | F152: 2502003 | I152: SERVICIO DE EDUCACIÓN INFORMAL EN MATERIA DE DERECHOS HUMANOS Y DERECHO INTERNACIONAL HUMANITARIO | J152: Nación | K152: CSF | L152: 11 | M152: 1796418873 | N152: 1796418873 | O152: 0.48 | P152: 0 | Q152: 1455482911 | R152: 398727973 | S152: 397459778 | T152: 387459778 | U152: 0.810213549 | V152: 0.2219571275
A153: C | B153: 2502 | C153: 1000 | D153: 25 | E153: 0 | F153: 2502004 | I153: SERVICIO DE DIVULGACIÓN DE LOS DERECHOS HUMANOS Y DEL DERECHO INTERNACIONAL HUMANITARIO DE LA POBLACIÓN | J153: Nación | K153: CSF | L153: 11 | M153: 655805936.2 | N153: 655805936 | O153: 0.17 | P153: 0 | Q153: 618805936 | R153: 169583331 | S153: 169583331 | T153: 162083331 | U153: 0.9435808703 | V153: 0.2585876731
A154: C | B154: 2502 | C154: 1000 | D154: 25 | E154: 0 | F154: 2502006 | I154: DOCUMENTOS DE INVESTIGACIÓN | J154: Nación | K154: CSF | L154: 11 | M154: 785678934 | N154: 785678934 | O154: 0.01 | P154: 0 | Q154: 684000000 | R154: 254306668.7 | S154: 254306668.7 | T154: 225906668.7 | U154: 0.8705846248 | V154: 0.3236775961
A155: C | B155: 2502 | C155: 1000 | D155: 25 | E155: 0 | F155: 2502011 | I155: DOCUMENTOS DE SEGUIMIENTO | J155: Nación | K155: CSF | L155: 11 | M155: 2927069486 | N155: 2821569485 | O155: 105500000.8 | P155: 0 | Q155: 2488235268 | R155: 956777210 | S155: 955127210 | T155: 955127210 | U155: 0.8500772804 | V155: 0.3268720523
A156: C | B156: 2502 | C156: 1000 | D156: 25 | E156: 0 | F156: 2502011 | I156: DOCUMENTOS DE SEGUIMIENTO | J156: Nación | K156: CSF | L156: 13 | M156: 2927069486 | N156: 2805569485 | O156: 121500000.8 | P156: 0 | Q156: 1740821545 | R156: 637645423.6 | S156: 632456588.6 | T156: 622456588.6 | U156: 0.5947318823 | V156: 0.217844307
A157: C | B157: 2502 | C157: 1000 | D157: 25 | E157: 0 | F157: 2502006 | I157: DOCUMENTOS DE INVESTIGACIÓN | J157: Nación | K157: CSF | L157: 13 | M157: 1285678934 | N157: 1260678934 | O157: 25000000.01 | P157: 0 | Q157: 779247075 | R157: 248035944 | S157: 248035944 | T157: 248035944 | U157: 0.6060977235 | V157: 0.1929221499
A158: C | B158: 2502 | C158: 1000 | D158: 25 | E158: 0 | F158: 2502004 | I158: SERVICIO DE DIVULGACIÓN DE LOS DERECHOS HUMANOS Y DEL DERECHO INTERNACIONAL HUMANITARIO DE LA POBLACIÓN | J158: Nación | K158: CSF | L158: 13 | M158: 715805936.2 | N158: 710008936 | O158: 5797000.17 | P158: 0 | Q158: 451062709 | R158: 86107664 | S158: 86107664 | T158: 86107664 | U158: 0.6301466448 | V158: 0.1202947051
A159: C | B159: 2502 | C159: 1000 | D159: 25 | E159: 0 | F159: 2502003 | I159: SERVICIO DE EDUCACIÓN INFORMAL EN MATERIA DE DERECHOS HUMANOS Y DERECHO INTERNACIONAL HUMANITARIO | J159: Nación | K159: CSF | L159: 13 | M159: 1736418873 | N159: 1734918873 | O159: 1500000.48 | P159: 0 | Q159: 1228894934 | R159: 173941664 | S159: 173245079 | T159: 173245079 | U159: 0.707718024 | V159: 0.1001726407
A160: C | B160: 2502 | C160: 1000 | D160: 25 | E160: 0 | F160: 2502002 | I160: SERVICIO DE ASISTENCIA TÉCNICA PARA ATENCIÓN, ORIENTACIÓN Y ASESORÍA EN MATERIA DE DERECHOS HUMANOS, EL DERECHO INTERNACIONAL HUMANITARIO Y EN ESCENARIOS DE PAZ | J160: Nación | K160: CSF | L160: 13 | M160: 3835026770 | N160: 3648793024 | O160: 186233746.5 | P160: 0 | Q160: 2266416063 | R160: 468544723 | S160: 457798961 | T160: 451798961 | U160: 0.5909778989 | V160: 0.1221750853
A161: C | B161: 2502 | C161: 1000 | D161: 25 | E161: 0 | F161: 2502002 | I161: SERVICIO DE ASISTENCIA TÉCNICA PARA ATENCIÓN, ORIENTACIÓN Y ASESORÍA EN MATERIA DE DERECHOS HUMANOS, EL DERECHO INTERNACIONAL HUMANITARIO Y EN ESCENARIOS DE PAZ | J161: Nación | K161: CSF | L161: 15 | M161: 289949588 | N161: 0 | O161: 289949588 | P161: 0 | Q161: 0 | R161: 0 | S161: 0 | T161: 0 | U161: =+IFERROR(Q161/M161,0) -> 0 | V161: =+IFERROR(R161/M161,0) -> 0
A162: C | B162: 2502 | C162: 1000 | D162: 25 | E162: 0 | F162: 2502003 | I162: SERVICIO DE EDUCACIÓN INFORMAL EN MATERIA DE DERECHOS HUMANOS Y DERECHO INTERNACIONAL HUMANITARIO | J162: Nación | K162: CSF | L162: 15 | M162: 871671031 | N162: 468895509 | O162: 402775522.1 | P162: 0 | Q162: 459033909 | R162: 0 | S162: 0 | T162: 0 | U162: 0.5266137025 | V162: 0
A163: C | B163: 2502 | C163: 1000 | D163: 25 | E163: 0 | F163: 2502004 | I163: SERVICIO DE DIVULGACIÓN DE LOS DERECHOS HUMANOS Y DEL DERECHO INTERNACIONAL HUMANITARIO DE LA POBLACIÓN | J163: Nación | K163: CSF | L163: 15 | M163: 564888349.7 | N163: 143616279 | O163: 421272070.7 | P163: 0 | Q163: 143616279 | R163: 0 | S163: 0 | T163: 0 | U163: 0.2542383448 | V163: 0
A164: C | B164: 2502 | C164: 1000 | D164: 25 | E164: 0 | F164: 2502006 | I164: DOCUMENTOS DE INVESTIGACIÓN | J164: Nación | K164: CSF | L164: 15 | M164: 197542132 | N164: 17000000 | O164: 180542132 | P164: 0 | Q164: 17000000 | R164: 0 | S164: 0 | T164: 0 | U164: 0.086057591 | V164: 0
A165: C | B165: 2502 | C165: 1000 | D165: 25 | E165: 0 | F165: 2502011 | I165: DOCUMENTOS DE SEGUIMIENTO | J165: Nación | K165: CSF | L165: 15 | M165: 715948899.3 | N165: 0 | O165: 715948899.3 | P165: 0 | Q165: 0 | R165: 0 | S165: 0 | T165: 0 | U165: 0 | V165: 0
A166: C | B166: 2502 | C166: 1000 | D166: 25 | E166: 0 | F166: 2502002 | G166: 02 | I166: ADQUISICIÓN DE BIENES Y SERVICIOS - SERVICIO DE ASISTENCIA TÉCNICA PARA ATENCIÓN, ORIENTACIÓN Y ASESORÍA EN MATERIA DE DERECHOS HUMANOS, EL DERECHO INTERNACIONAL HUMANITARIO Y EN ESCENARIOS DE PAZ - FORTALECIMIENTO DE LA ATENCIÓN, PROMOCIÓN, DIVULGAC | J166: Nación | K166: CSF | L166: 11 | M166: 4335026770 | N166: 4265124770 | O166: 69902000.49 | P166: 0 | Q166: 2587553392 | R166: 1023902417 | S166: 1007953831 | T166: 1007953831 | U166: 0.5968944436 | V166: 0.2361928706
A167: C | B167: 2502 | C167: 1000 | D167: 25 | E167: 0 | F167: 2502003 | G167: 02 | I167: ADQUISICIÓN DE BIENES Y SERVICIOS - SERVICIO DE EDUCACIÓN INFORMAL EN MATERIA DE DERECHOS HUMANOS Y DERECHO INTERNACIONAL HUMANITARIO - FORTALECIMIENTO DE LA ATENCIÓN, PROMOCIÓN, DIVULGACIÓN, PROTECCIÓN Y DEFENSA DE DERECHOS HUMANOS A LA POBLACIÓN Y | J167: Nación | K167: CSF | L167: 11 | M167: 1796418873 | N167: 1796418873 | O167: 0.48 | P167: 0 | Q167: 1455482911 | R167: 398727973 | S167: 397459778 | T167: 387459778 | U167: 0.810213549 | V167: 0.2219571275
A168: C | B168: 2502 | C168: 1000 | D168: 25 | E168: 0 | F168: 2502011 | G168: 02 | I168: ADQUISICIÓN DE BIENES Y SERVICIOS - DOCUMENTOS DE SEGUIMIENTO - FORTALECIMIENTO DE LA ATENCIÓN, PROMOCIÓN, DIVULGACIÓN, PROTECCIÓN Y DEFENSA DE DERECHOS HUMANOS A LA POBLACIÓN Y GRUPOS DE INTERÉS EN EL TERRITORIO NACIONAL NACIONAL | J168: Nación | K168: CSF | L168: 11 | M168: 2927069486 | N168: 2821569485 | O168: 105500000.8 | P168: 0 | Q168: 2488235268 | R168: 956777210 | S168: 955127210 | T168: 955127210 | U168: 0.8500772804 | V168: 0.3268720523
A169: C | B169: 2502 | C169: 1000 | D169: 25 | E169: 0 | F169: 2502004 | G169: 02 | I169: ADQUISICIÓN DE BIENES Y SERVICIOS - SERVICIO DE DIVULGACIÓN DE LOS DERECHOS HUMANOS Y DEL DERECHO INTERNACIONAL HUMANITARIO DE LA POBLACIÓN - FORTALECIMIENTO DE LA ATENCIÓN, PROMOCIÓN, DIVULGACIÓN, PROTECCIÓN Y DEFENSA DE DERECHOS HUMANOS A LA POBLAC | J169: Nación | K169: CSF | L169: 11 | M169: 655805936.2 | N169: 655805936 | O169: 0.17 | P169: 0 | Q169: 618805936 | R169: 169583331 | S169: 169583331 | T169: 162083331 | U169: 0.9435808703 | V169: 0.2585876731
A170: C | B170: 2502 | C170: 1000 | D170: 25 | E170: 0 | F170: 2502006 | G170: 02 | I170: ADQUISICIÓN DE BIENES Y SERVICIOS - DOCUMENTOS DE INVESTIGACIÓN - FORTALECIMIENTO DE LA ATENCIÓN, PROMOCIÓN, DIVULGACIÓN, PROTECCIÓN Y DEFENSA DE DERECHOS HUMANOS A LA POBLACIÓN Y GRUPOS DE INTERÉS EN EL TERRITORIO NACIONAL NACIONAL | J170: Nación | K170: CSF | L170: 11 | M170: 785678934 | N170: 785678934 | O170: 0.01 | P170: 0 | Q170: 684000000 | R170: 254306668.7 | S170: 254306668.7 | T170: 225906668.7 | U170: 0.8705846248 | V170: 0.3236775961
A171: C | B171: 2502 | C171: 1000 | D171: 25 | E171: 0 | F171: 2502006 | G171: 02 | I171: ADQUISICIÓN DE BIENES Y SERVICIOS - DOCUMENTOS DE INVESTIGACIÓN - FORTALECIMIENTO DE LA ATENCIÓN, PROMOCIÓN, DIVULGACIÓN, PROTECCIÓN Y DEFENSA DE DERECHOS HUMANOS A LA POBLACIÓN Y GRUPOS DE INTERÉS EN EL TERRITORIO NACIONAL NACIONAL | J171: Nación | K171: CSF | L171: 13 | M171: 1285678934 | N171: 1260678934 | O171: 25000000.01 | P171: 0 | Q171: 779247075 | R171: 248035944 | S171: 248035944 | T171: 248035944 | U171: 0.6060977235 | V171: 0.1929221499
A172: C | B172: 2502 | C172: 1000 | D172: 25 | E172: 0 | F172: 2502004 | G172: 02 | I172: ADQUISICIÓN DE BIENES Y SERVICIOS - SERVICIO DE DIVULGACIÓN DE LOS DERECHOS HUMANOS Y DEL DERECHO INTERNACIONAL HUMANITARIO DE LA POBLACIÓN - FORTALECIMIENTO DE LA ATENCIÓN, PROMOCIÓN, DIVULGACIÓN, PROTECCIÓN Y DEFENSA DE DERECHOS HUMANOS A LA POBLAC | J172: Nación | K172: CSF | L172: 13 | M172: 715805936.2 | N172: 710008936 | O172: 5797000.17 | P172: 0 | Q172: 451062709 | R172: 86107664 | S172: 86107664 | T172: 86107664 | U172: 0.6301466448 | V172: 0.1202947051
A173: C | B173: 2502 | C173: 1000 | D173: 25 | E173: 0 | F173: 2502011 | G173: 02 | I173: ADQUISICIÓN DE BIENES Y SERVICIOS - DOCUMENTOS DE SEGUIMIENTO - FORTALECIMIENTO DE LA ATENCIÓN, PROMOCIÓN, DIVULGACIÓN, PROTECCIÓN Y DEFENSA DE DERECHOS HUMANOS A LA POBLACIÓN Y GRUPOS DE INTERÉS EN EL TERRITORIO NACIONAL NACIONAL | J173: Nación | K173: CSF | L173: 13 | M173: 2927069486 | N173: 2805569485 | O173: 121500000.8 | P173: 0 | Q173: 1740821545 | R173: 637645423.6 | S173: 632456588.6 | T173: 622456588.6 | U173: 0.5947318823 | V173: 0.217844307
A174: C | B174: 2502 | C174: 1000 | D174: 25 | E174: 0 | F174: 2502003 | G174: 02 | I174: ADQUISICIÓN DE BIENES Y SERVICIOS - SERVICIO DE EDUCACIÓN INFORMAL EN MATERIA DE DERECHOS HUMANOS Y DERECHO INTERNACIONAL HUMANITARIO - FORTALECIMIENTO DE LA ATENCIÓN, PROMOCIÓN, DIVULGACIÓN, PROTECCIÓN Y DEFENSA DE DERECHOS HUMANOS A LA POBLACIÓN Y | J174: Nación | K174: CSF | L174: 13 | M174: 1736418873 | N174: 1734918873 | O174: 1500000.48 | P174: 0 | Q174: 1228894934 | R174: 173941664 | S174: 173245079 | T174: 173245079 | U174: 0.707718024 | V174: 0.1001726407
A175: C | B175: 2502 | C175: 1000 | D175: 25 | E175: 0 | F175: 2502002 | G175: 02 | I175: ADQUISICIÓN DE BIENES Y SERVICIOS - SERVICIO DE ASISTENCIA TÉCNICA PARA ATENCIÓN, ORIENTACIÓN Y ASESORÍA EN MATERIA DE DERECHOS HUMANOS, EL DERECHO INTERNACIONAL HUMANITARIO Y EN ESCENARIOS DE PAZ - FORTALECIMIENTO DE LA ATENCIÓN, PROMOCIÓN, DIVULGAC | J175: Nación | K175: CSF | L175: 13 | M175: 3835026770 | N175: 3648793024 | O175: 186233746.5 | P175: 0 | Q175: 2266416063 | R175: 468544723 | S175: 457798961 | T175: 451798961 | U175: 0.5909778989 | V175: 0.1221750853
A176: C | B176: 2502 | C176: 1000 | D176: 25 | E176: 0 | F176: 2502002 | G176: 02 | I176: ADQUISICIÓN DE BIENES Y SERVICIOS - SERVICIO DE ASISTENCIA TÉCNICA PARA ATENCIÓN, ORIENTACIÓN Y ASESORÍA EN MATERIA DE DERECHOS HUMANOS, EL DERECHO INTERNACIONAL HUMANITARIO Y EN ESCENARIOS DE PAZ - FORTALECIMIENTO DE LA ATENCIÓN, PROMOCIÓN, DIVULGAC | J176: Nación | K176: CSF | L176: 15 | M176: 289949588 | N176: 0 | O176: 289949588 | P176: 0 | Q176: 0 | R176: 0 | S176: 0 | T176: 0 | U176: 0 | V176: 0
A177: C | B177: 2502 | C177: 1000 | D177: 25 | E177: 0 | F177: 2502003 | G177: 02 | I177: ADQUISICIÓN DE BIENES Y SERVICIOS - SERVICIO DE EDUCACIÓN INFORMAL EN MATERIA DE DERECHOS HUMANOS Y DERECHO INTERNACIONAL HUMANITARIO - FORTALECIMIENTO DE LA ATENCIÓN, PROMOCIÓN, DIVULGACIÓN, PROTECCIÓN Y DEFENSA DE DERECHOS HUMANOS A LA POBLACIÓN Y | J177: Nación | K177: CSF | L177: 15 | M177: 871671031 | N177: 468895509 | O177: 402775522.1 | P177: 0 | Q177: 459033909 | R177: 0 | S177: 0 | T177: 0 | U177: 0.5266137025 | V177: 0
A178: C | B178: 2502 | C178: 1000 | D178: 25 | E178: 0 | F178: 2502011 | G178: 02 | I178: ADQUISICIÓN DE BIENES Y SERVICIOS - DOCUMENTOS DE SEGUIMIENTO - FORTALECIMIENTO DE LA ATENCIÓN, PROMOCIÓN, DIVULGACIÓN, PROTECCIÓN Y DEFENSA DE DERECHOS HUMANOS A LA POBLACIÓN Y GRUPOS DE INTERÉS EN EL TERRITORIO NACIONAL NACIONAL | J178: Nación | K178: CSF | L178: 15 | M178: 715948899.3 | N178: 0 | O178: 715948899.3 | P178: 0 | Q178: 0 | R178: 0 | S178: 0 | T178: 0 | U178: 0 | V178: 0
A179: C | B179: 2502 | C179: 1000 | D179: 25 | E179: 0 | F179: 2502004 | G179: 02 | I179: ADQUISICIÓN DE BIENES Y SERVICIOS - SERVICIO DE DIVULGACIÓN DE LOS DERECHOS HUMANOS Y DEL DERECHO INTERNACIONAL HUMANITARIO DE LA POBLACIÓN - FORTALECIMIENTO DE LA ATENCIÓN, PROMOCIÓN, DIVULGACIÓN, PROTECCIÓN Y DEFENSA DE DERECHOS HUMANOS A LA POBLAC | J179: Nación | K179: CSF | L179: 15 | M179: 564888349.7 | N179: 143616279 | O179: 421272070.7 | P179: 0 | Q179: 143616279 | R179: 0 | S179: 0 | T179: 0 | U179: 0.2542383448 | V179: 0
A180: C | B180: 2502 | C180: 1000 | D180: 25 | E180: 0 | F180: 2502006 | G180: 02 | I180: ADQUISICIÓN DE BIENES Y SERVICIOS - DOCUMENTOS DE INVESTIGACIÓN - FORTALECIMIENTO DE LA ATENCIÓN, PROMOCIÓN, DIVULGACIÓN, PROTECCIÓN Y DEFENSA DE DERECHOS HUMANOS A LA POBLACIÓN Y GRUPOS DE INTERÉS EN EL TERRITORIO NACIONAL NACIONAL | J180: Nación | K180: CSF | L180: 15 | M180: 197542132 | N180: 17000000 | O180: 180542132 | P180: 0 | Q180: 17000000 | R180: 0 | S180: 0 | T180: 0 | U180: 0.086057591 | V180: 0
A181: C | B181: 2502 | C181: 1000 | D181: 25 | E181: 0 | I181: FORTALECIMIENTO DE LA ATENCIÓN, PROMOCIÓN, DIVULGACIÓN, PROTECCIÓN Y DEFENSA DE DERECHOS HUMANOS A LA POBLACIÓN Y GRUPOS DE INTERÉS EN EL TERRITORIO NACIONAL NACIONAL | J181: Nación | K181: CSF | L181: 11 | M181: 10500000000 | N181: 10324597998 | O181: 175402002 | P181: 0 | Q181: 7834077507 | R181: 2803297600 | S181: 2784430819 | T181: 2738530819 | U181: 0.7461026197 | V181: 0.2669807238
A182: C | B182: 2502 | C182: 1000 | D182: 25 | E182: 0 | I182: FORTALECIMIENTO DE LA ATENCIÓN, PROMOCIÓN, DIVULGACIÓN, PROTECCIÓN Y DEFENSA DE DERECHOS HUMANOS A LA POBLACIÓN Y GRUPOS DE INTERÉS EN EL TERRITORIO NACIONAL NACIONAL | J182: Nación | K182: CSF | L182: 13 | M182: 10500000000 | N182: 10159969252 | O182: 340030748 | P182: 0 | Q182: 6466442326 | R182: 1614275419 | S182: 1597644237 | T182: 1581644237 | U182: 0.6158516501 | V182: 0.1537405161
A183: C | B183: 2502 | C183: 1000 | D183: 25 | E183: 0 | I183: FORTALECIMIENTO DE LA ATENCIÓN, PROMOCIÓN, DIVULGACIÓN, PROTECCIÓN Y DEFENSA DE DERECHOS HUMANOS A LA POBLACIÓN Y GRUPOS DE INTERÉS EN EL TERRITORIO NACIONAL NACIONAL | J183: Nación | K183: CSF | L183: 15 | M183: 2640000000 | N183: 629511788 | O183: 2010488212 | P183: 0 | Q183: 619650188 | R183: 0 | S183: 0 | T183: 0 | U183: 0.2347159803 | V183: 0
A184: C | B184: 2502 | C184: 1000 | D184: 27 | E184: 0 | I184: CONTRIBUCION EN LA CONSTRUCCION DE CIUDADANIA DE LA VICTIMAS DEL CONFLICTO ARMADO NACIONAL | J184: Nación | K184: CSF | L184: 11 | M184: 5000000000 | N184: 3539407823 | O184: 1460592177 | P184: 0 | Q184: 2835535294 | R184: 1094663091 | S184: 1085759469 | T184: 1085759469 | U184: 0.5671070588 | V184: 0.2189326182
A185: C | B185: 2502 | C185: 1000 | D185: 27 | E185: 0 | F185: 2502001 | I185: SERVICIO DE ADVERTENCIA Y SEGUIMIENTO A LOS RIESGOS DE VULNERACIÓN DE LOS DERECHOS HUMANOS, EL DERECHO INTERNACIONAL HUMANITARIO Y EN LOS ESCENARIOS DE PAZ | J185: Nación | K185: CSF | L185: 11 | M185: 1699633877 | N185: 882098416 | O185: 817535461.4 | P185: 0 | Q185: 520089029 | R185: 196370235 | S185: 190943796 | T185: 190943796 | U185: 0.3060006251 | V185: 0.1155367857
A186: C | B186: 2502 | C186: 1000 | D186: 27 | E186: 0 | F186: 2502002 | I186: SERVICIO DE ASISTENCIA TÉCNICA PARA ATENCIÓN, ORIENTACIÓN Y ASESORÍA EN MATERIA DE DERECHOS HUMANOS, EL DERECHO INTERNACIONAL HUMANITARIO Y EN ESCENARIOS DE PAZ | J186: Nación | K186: CSF | L186: 11 | M186: 2196579406 | N186: 2128239406 | O186: 68340000.3 | P186: 0 | Q186: 1927016096 | R186: 800811235 | S186: 797334052 | T186: 797334052 | U186: 0.8772804163 | V186: 0.3645719489
A187: C | B187: 2502 | C187: 1000 | D187: 27 | E187: 0 | F187: 2502003 | I187: SERVICIO DE EDUCACIÓN INFORMAL EN MATERIA DE DERECHOS HUMANOS Y DERECHO INTERNACIONAL HUMANITARIO | J187: Nación | K187: CSF | L187: 11 | M187: 1103786716 | N187: 529070001 | O187: 574716715.3 | P187: 0 | Q187: 388430169 | R187: 97481621 | S187: 97481621 | T187: 97481621 | U187: 0.3519069067 | V187: 0.0883156316
A188: C | B188: 2502 | C188: 1000 | D188: 27 | E188: 0 | F188: 2502003 | I188: SERVICIO DE EDUCACIÓN INFORMAL EN MATERIA DE DERECHOS HUMANOS Y DERECHO INTERNACIONAL HUMANITARIO | J188: Nación | K188: CSF | L188: 13 | M188: 3425973234 | N188: 2867867539 | O188: 558105694.7 | P188: 0 | Q188: 1776227788 | R188: 430044753 | S188: 426112620 | T188: 413112620 | U188: 0.5184593302 | V188: 0.1255248432
A189: C | B189: 2502 | C189: 1000 | D189: 27 | E189: 0 | F189: 2502002 | I189: SERVICIO DE ASISTENCIA TÉCNICA PARA ATENCIÓN, ORIENTACIÓN Y ASESORÍA EN MATERIA DE DERECHOS HUMANOS, EL DERECHO INTERNACIONAL HUMANITARIO Y EN ESCENARIOS DE PAZ | J189: Nación | K189: CSF | L189: 13 | M189: 6817822810 | N189: 5915463033 | O189: 902359776.7 | P189: 0 | Q189: 4967855645 | R189: 1968456942 | S189: 1939805704 | T189: 1929865704 | U189: 0.7286571951 | V189: 0.2887222207
A190: C | B190: 2502 | C190: 1000 | D190: 27 | E190: 0 | F190: 2502001 | I190: SERVICIO DE ADVERTENCIA Y SEGUIMIENTO A LOS RIESGOS DE VULNERACIÓN DE LOS DERECHOS HUMANOS, EL DERECHO INTERNACIONAL HUMANITARIO Y EN LOS ESCENARIOS DE PAZ | J190: Nación | K190: CSF | L190: 13 | M190: 5275385258 | N190: 5122099672 | O190: 153285585.6 | P190: 0 | Q190: 4214425681 | R190: 1493977569 | S190: 1478637584 | T190: 1468637584 | U190: 0.7988849108 | V190: 0.2831978132
A191: C | B191: 2502 | C191: 1000 | D191: 27 | E191: 0 | I191: CONTRIBUCION EN LA CONSTRUCCION DE CIUDADANIA DE LA VICTIMAS DEL CONFLICTO ARMADO NACIONAL | J191: Nación | K191: CSF | L191: 13 | M191: 15519181301 | N191: 13905430244 | O191: 1613751057 | P191: 0 | Q191: 10958509114 | R191: 3892479264 | S191: 3844555908 | T191: 3811615908 | U191: 0.7061267538 | V191: 0.2508173072
A192: C | B192: 2502 | C192: 1000 | D192: 27 | E192: 0 | F192: 2502001 | G192: 02 | I192: ADQUISICIÓN DE BIENES Y SERVICIOS - SERVICIO DE ADVERTENCIA Y SEGUIMIENTO A LOS RIESGOS DE VULNERACIÓN DE LOS DERECHOS HUMANOS, EL DERECHO INTERNACIONAL HUMANITARIO Y EN LOS ESCENARIOS DE PAZ - CONTRIBUCION EN LA CONSTRUCCION DE CIUDADANIA DE LA VI | J192: Nación | K192: CSF | L192: 11 | M192: 1699633877 | N192: 882098416 | O192: 817535461.4 | P192: 0 | Q192: 520089029 | R192: 196370235 | S192: 190943796 | T192: 190943796 | U192: 0.3060006251 | V192: 0.1155367857
A193: C | B193: 2502 | C193: 1000 | D193: 27 | E193: 0 | F193: 2502002 | G193: 02 | I193: ADQUISICIÓN DE BIENES Y SERVICIOS - SERVICIO DE ASISTENCIA TÉCNICA PARA ATENCIÓN, ORIENTACIÓN Y ASESORÍA EN MATERIA DE DERECHOS HUMANOS, EL DERECHO INTERNACIONAL HUMANITARIO Y EN ESCENARIOS DE PAZ - CONTRIBUCION EN LA CONSTRUCCION DE CIUDADANIA DE | J193: Nación | K193: CSF | L193: 11 | M193: 2196579406 | N193: 2128239406 | O193: 68340000.3 | P193: 0 | Q193: 1927016096 | R193: 800811235 | S193: 797334052 | T193: 797334052 | U193: =+IFERROR(Q193/M193,0) -> 0.8772804163 | V193: =+IFERROR(R193/M193,0) -> 0.3645719489
A194: C | B194: 2502 | C194: 1000 | D194: 27 | E194: 0 | F194: 2502003 | G194: 02 | I194: ADQUISICIÓN DE BIENES Y SERVICIOS - SERVICIO DE EDUCACIÓN INFORMAL EN MATERIA DE DERECHOS HUMANOS Y DERECHO INTERNACIONAL HUMANITARIO - CONTRIBUCION EN LA CONSTRUCCION DE CIUDADANIA DE LA VICTIMAS DEL CONFLICTO ARMADO NACIONAL | J194: Nación | K194: CSF | L194: 11 | M194: 1103786716 | N194: 529070001 | O194: 574716715.3 | P194: 0 | Q194: 388430169 | R194: 97481621 | S194: 97481621 | T194: 97481621 | U194: 0.3519069067 | V194: 0.0883156316
A195: C | B195: 2502 | C195: 1000 | D195: 27 | E195: 0 | F195: 2502003 | G195: 02 | I195: ADQUISICIÓN DE BIENES Y SERVICIOS - SERVICIO DE EDUCACIÓN INFORMAL EN MATERIA DE DERECHOS HUMANOS Y DERECHO INTERNACIONAL HUMANITARIO - CONTRIBUCION EN LA CONSTRUCCION DE CIUDADANIA DE LA VICTIMAS DEL CONFLICTO ARMADO NACIONAL | J195: Nación | K195: CSF | L195: 13 | M195: 3425973234 | N195: 2867867539 | O195: 558105694.7 | P195: 0 | Q195: 1776227788 | R195: 430044753 | S195: 426112620 | T195: 413112620 | U195: 0.5184593302 | V195: 0.1255248432
A196: C | B196: 2502 | C196: 1000 | D196: 27 | E196: 0 | F196: 2502002 | G196: 02 | I196: ADQUISICIÓN DE BIENES Y SERVICIOS - SERVICIO DE ASISTENCIA TÉCNICA PARA ATENCIÓN, ORIENTACIÓN Y ASESORÍA EN MATERIA DE DERECHOS HUMANOS, EL DERECHO INTERNACIONAL HUMANITARIO Y EN ESCENARIOS DE PAZ - CONTRIBUCION EN LA CONSTRUCCION DE CIUDADANIA DE | J196: Nación | K196: CSF | L196: 13 | M196: 6817822810 | N196: 5915463033 | O196: 902359776.7 | P196: 0 | Q196: 4967855645 | R196: 1968456942 | S196: 1939805704 | T196: 1929865704 | U196: 0.7286571951 | V196: 0.2887222207
A197: C | B197: 2502 | C197: 1000 | D197: 27 | E197: 0 | F197: 2502001 | G197: 02 | I197: ADQUISICIÓN DE BIENES Y SERVICIOS - SERVICIO DE ADVERTENCIA Y SEGUIMIENTO A LOS RIESGOS DE VULNERACIÓN DE LOS DERECHOS HUMANOS, EL DERECHO INTERNACIONAL HUMANITARIO Y EN LOS ESCENARIOS DE PAZ - CONTRIBUCION EN LA CONSTRUCCION DE CIUDADANIA DE LA VI | J197: Nación | K197: CSF | L197: 13 | M197: 5275385258 | N197: 5122099672 | O197: 153285585.6 | P197: 0 | Q197: 4214425681 | R197: 1493977569 | S197: 1478637584 | T197: 1468637584 | U197: 0.7988849108 | V197: 0.2831978132
A198: C | B198: 2502 | C198: 1000 | D198: 27 | I198: CONTRIBUCION EN LA CONSTRUCCION DE CIUDADANIA DE LA VICTIMAS DEL CONFLICTO ARMADO NACIONAL | J198: Nación | K198: CSF | L198: 11 | M198: 5000000000 | N198: 3539407823 | O198: 1460592177 | P198: 0 | Q198: 2835535294 | R198: 1094663091 | S198: 1085759469 | T198: 1085759469 | U198: 0.5671070588 | V198: 0.2189326182
A199: C | B199: 2502 | C199: 1000 | D199: 27 | I199: CONTRIBUCION EN LA CONSTRUCCION DE CIUDADANIA DE LA VICTIMAS DEL CONFLICTO ARMADO NACIONAL | J199: Nación | K199: CSF | L199: 13 | M199: 15519181301 | N199: 13905430244 | O199: 1613751057 | P199: 0 | Q199: 10958509114 | R199: 3892479264 | S199: 3844555908 | T199: 3811615908 | U199: 0.7061267538 | V199: 0.2508173072
A200: C | B200: 2599 | I200: FORTALECIMIENTO DE LA GESTIÓN Y DIRECCIÓN DEL SECTOR ORGANISMOS DE CONTROL | J200: Nación | K200: CSF | L200: 11 | M200: 4500000000 | N200: 655281467 | O200: 3844718533 | P200: 0 | Q200: 208500000 | R200: 50033333 | S200: 50033333 | T200: 50033333 | U200: 0.04633333333 | V200: 0.01111851844
A201: C | B201: 2599 | I201: FORTALECIMIENTO DE LA GESTIÓN Y DIRECCIÓN DEL SECTOR ORGANISMOS DE CONTROL | J201: Nación | K201: CSF | L201: 13 | M201: 11716498462 | N201: 269141072 | O201: 11447357390 | P201: 0 | Q201: 0 | R201: 0 | S201: 0 | T201: 0 | U201: 0 | V201: 0
A202: C | B202: 2599 | C202: 1000 | I202: INTERSUBSECTORIAL GOBIERNO | J202: Nación | K202: CSF | L202: 11 | M202: 4500000000 | N202: 655281467 | O202: 3844718533 | P202: 0 | Q202: 208500000 | R202: 50033333 | S202: 50033333 | T202: 50033333 | U202: 0.04633333333 | V202: 0.01111851844
A203: C | B203: 2599 | C203: 1000 | I203: INTERSUBSECTORIAL GOBIERNO | J203: Nación | K203: CSF | L203: 13 | M203: 11716498462 | N203: 269141072 | O203: 11447357390 | P203: 0 | Q203: 0 | R203: 0 | S203: 0 | T203: 0 | U203: 0 | V203: 0
A204: C | B204: 2599 | C204: 1000 | D204: 7 | I204: ADECUACIÓN DE LAS CONDICIONES FÍSICAS APROPIADAS PARA EL FUNCIONAMIENTO DE LAS DEFENSORÍAS DEL PUEBLO A NIVEL REGIONAL NACIONAL | J204: Nación | K204: CSF | L204: 13 | M204: 10000000000 | N204: 269141072 | O204: 9730858928 | P204: 0 | Q204: 0 | R204: 0 | S204: 0 | T204: 0 | U204: 0 | V204: 0
... 46 more rows
